[Event "Late-Titled-Tuesday-Blitz-February-27-2024"]
[Site "Chess.com"]
[Date "2024.02.27"]
[Round "1"]
[White "dolynachess"]
[Black "alexrustemov"]
[Result "0-1"]
[WhiteElo "2457"]
[BlackElo "2815"]
[TimeControl "180+1"]
[EndTime "14:07:18 PST"]
[Termination "alexrustemov won on time"]

1. d4 {[%clk 0:02:56.3]} 1... d5 {[%clk 0:02:59.6]} 2. c4 {[%clk 0:02:56.2]}
2... c6 {[%clk 0:02:59.9]} 3. Nf3 {[%clk 0:02:56.4]} 3... Nf6 {[%clk 0:03:00.1]}
4. g3 {[%clk 0:02:56.7]} 4... a6 {[%clk 0:02:58.9]} 5. Bg2 {[%clk 0:02:57.1]}
5... dxc4 {[%clk 0:02:58.1]} 6. O-O {[%clk 0:02:57.1]} 6... b5 {[%clk
0:02:57.3]} 7. Nc3 {[%clk 0:02:56]} 7... Bb7 {[%clk 0:02:56.4]} 8. e4 {[%clk
0:02:56.1]} 8... e6 {[%clk 0:02:55.8]} 9. e5 {[%clk 0:02:50.3]} 9... Nd5 {[%clk
0:02:32.3]} 10. Ng5 {[%clk 0:02:50]} 10... Be7 {[%clk 0:02:30.2]} 11. Qh5 {[%clk
0:02:48.1]} 11... g6 {[%clk 0:02:29.5]} 12. Qh6 {[%clk 0:02:48.2]} 12... Bf8
{[%clk 0:02:26.2]} 13. Qh3 {[%clk 0:02:45.9]} 13... Nxc3 {[%clk 0:02:23.3]} 14.
bxc3 {[%clk 0:02:45.2]} 14... Be7 {[%clk 0:02:15.8]} 15. Qh6 {[%clk 0:02:44]}
15... Bf8 {[%clk 0:02:12.1]} 16. Qh3 {[%clk 0:02:43.6]} 16... Nd7 {[%clk
0:02:08.4]} 17. a4 {[%clk 0:02:30.7]} 17... Nb6 {[%clk 0:02:07.1]} 18. Ne4
{[%clk 0:02:03.3]} 18... Be7 {[%clk 0:02:05.8]} 19. Ba3 {[%clk 0:01:55.5]} 19...
h6 {[%clk 0:01:46.5]} 20. Nd6+ {[%clk 0:01:27.6]} 20... Bxd6 {[%clk 0:01:45.3]}
21. Bxd6 {[%clk 0:01:28.5]} 21... Nxa4 {[%clk 0:01:27]} 22. Rxa4 {[%clk
0:01:27.9]} 22... bxa4 {[%clk 0:01:27]} 23. Rb1 {[%clk 0:01:28.3]} 23... Ra7
{[%clk 0:01:11.1]} 24. Bc5 {[%clk 0:01:25.5]} 24... Qa8 {[%clk 0:01:06]} 25. Qh4
{[%clk 0:01:15.5]} 25... g5 {[%clk 0:01:05.3]} 26. Qe4 {[%clk 0:00:55.3]} 26...
a3 {[%clk 0:01:04.3]} 27. Qe2 {[%clk 0:00:49.3]} 27... Bc8 {[%clk 0:00:57.4]}
28. Qxc4 {[%clk 0:00:39.3]} 28... Bd7 {[%clk 0:00:51.8]} 29. Bxa3 {[%clk
0:00:18.5]} 29... Rb7 {[%clk 0:00:48.6]} 30. Rxb7 {[%clk 0:00:18.4]} 30... Qxb7
{[%clk 0:00:48.6]} 31. Qc5 {[%clk 0:00:19.3]} 31... Kd8 {[%clk 0:00:45.8]} 32.
Qe7+ {[%clk 0:00:17.6]} 32... Kc8 {[%clk 0:00:45.8]} 33. Qxf7 {[%clk 0:00:13.6]}
33... Qb1+ {[%clk 0:00:43]} 34. Bf1 {[%clk 0:00:13.4]} 34... c5 {[%clk
0:00:43.4]} 35. Bxc5 {[%clk 0:00:09.5]} 35... Re8 {[%clk 0:00:38.7]} 36. Bd6
{[%clk 0:00:02.3]} 36... a5 {[%clk 0:00:20.6]} 37. h3 {[%clk 0:00:01.9]} 37...
a4 {[%clk 0:00:20.3]} 38. Qf3 {[%clk 0:00:01.3]} 38... Qb7 {[%clk 0:00:19.2]}
0-1

[Event "Late-Titled-Tuesday-Blitz-February-27-2024"]
[Site "Chess.com"]
[Date "2024.02.27"]
[Round "1"]
[White "wqws"]
[Black "adricalderon8"]
[Result "0-1"]
[WhiteElo "2684"]
[BlackElo "2435"]
[TimeControl "180+1"]
[EndTime "14:07:24 PST"]
[Termination "adricalderon8 won by resignation"]

1. e4 {[%clk 0:03:00.9]} 1... c5 {[%clk 0:03:00.3]} 2. Nf3 {[%clk 0:03:00.6]}
2... Nc6 {[%clk 0:03:00.9]} 3. d4 {[%clk 0:03:00.8]} 3... cxd4 {[%clk
0:03:01.8]} 4. Nxd4 {[%clk 0:03:01.7]} 4... g6 {[%clk 0:03:02.4]} 5. c4 {[%clk
0:03:01.2]} 5... Bg7 {[%clk 0:03:02.3]} 6. Be3 {[%clk 0:03:01.3]} 6... Nf6
{[%clk 0:03:02.6]} 7. Nc3 {[%clk 0:03:01.4]} 7... O-O {[%clk 0:03:02.4]} 8. Be2
{[%clk 0:02:58.4]} 8... d6 {[%clk 0:03:00.9]} 9. O-O {[%clk 0:02:57]} 9... Bd7
{[%clk 0:03:01.2]} 10. h3 {[%clk 0:02:47.5]} 10... Nxd4 {[%clk 0:02:59.4]} 11.
Bxd4 {[%clk 0:02:47.4]} 11... Bc6 {[%clk 0:03:00.3]} 12. Bd3 {[%clk 0:02:43.6]}
12... Nd7 {[%clk 0:02:57.8]} 13. Be3 {[%clk 0:02:42]} 13... Nc5 {[%clk
0:02:51.8]} 14. Bc2 {[%clk 0:02:38.1]} 14... a5 {[%clk 0:02:48.6]} 15. f3 {[%clk
0:02:29.4]} 15... Qb6 {[%clk 0:02:44.2]} 16. Rb1 {[%clk 0:02:28.6]} 16... Qb4
{[%clk 0:02:34]} 17. Nd5 {[%clk 0:01:37.5]} 17... Bxd5 {[%clk 0:02:32.9]} 18.
cxd5 {[%clk 0:01:32.7]} 18... Rfc8 {[%clk 0:02:32.4]} 19. Rf2 {[%clk 0:01:01.8]}
19... a4 {[%clk 0:02:31.6]} 20. a3 {[%clk 0:00:59.8]} 20... Qc4 {[%clk
0:02:25.6]} 21. Qe2 {[%clk 0:00:58.4]} 21... Qxe2 {[%clk 0:02:24]} 22. Rxe2
{[%clk 0:00:59.3]} 22... b5 {[%clk 0:02:23.4]} 23. Bd2 {[%clk 0:00:55.3]} 23...
Nb3 {[%clk 0:02:22.5]} 24. Bxb3 {[%clk 0:00:55]} 24... axb3 {[%clk 0:02:22.4]}
25. Bb4 {[%clk 0:00:44.6]} 25... Rc2 {[%clk 0:02:18.9]} 26. Kf1 {[%clk
0:00:37.8]} 26... Rac8 {[%clk 0:02:18]} 27. Ke1 {[%clk 0:00:32.3]} 27... Rxe2+
{[%clk 0:02:16.4]} 28. Kxe2 {[%clk 0:00:32]} 28... Rc2+ {[%clk 0:02:17.3]} 29.
Kd3 {[%clk 0:00:30.8]} 29... Rxg2 {[%clk 0:02:14.7]} 30. Bc3 {[%clk 0:00:30.1]}
30... Rg3 {[%clk 0:02:02.7]} 31. Bxg7 {[%clk 0:00:29.1]} 31... Kxg7 {[%clk
0:02:03.6]} 32. Kc3 {[%clk 0:00:29.1]} 32... Rxf3+ {[%clk 0:02:03.6]} 33. Kb4
{[%clk 0:00:29]} 33... Rxh3 {[%clk 0:02:03.9]} 34. Kxb5 {[%clk 0:00:28.9]} 34...
f5 {[%clk 0:01:57.6]} 35. a4 {[%clk 0:00:25.6]} 35... f4 {[%clk 0:01:52.3]} 36.
a5 {[%clk 0:00:24]} 36... Rh2 {[%clk 0:01:32.3]} 37. a6 {[%clk 0:00:22.5]} 37...
Rc2 {[%clk 0:01:32.6]} 38. Kb4 {[%clk 0:00:20.6]} 38... Rc7 {[%clk 0:01:31.5]}
39. Kxb3 {[%clk 0:00:20.1]} 39... g5 {[%clk 0:01:31.8]} 40. Ka4 {[%clk 0:00:20]}
40... f3 {[%clk 0:01:29.4]} 41. b4 {[%clk 0:00:19.9]} 41... g4 {[%clk
0:01:28.7]} 42. b5 {[%clk 0:00:20.2]} 42... g3 {[%clk 0:01:17]} 43. b6 {[%clk
0:00:20]} 43... Rc4+ {[%clk 0:01:16]} 44. Ka5 {[%clk 0:00:16.5]} 44... f2 {[%clk
0:01:15.1]} 45. b7 {[%clk 0:00:16.5]} 45... g2 {[%clk 0:01:14.2]} 46. b8=Q
{[%clk 0:00:15.3]} 46... f1=Q {[%clk 0:01:12.9]} 47. Qb2+ {[%clk 0:00:15.3]}
47... Kf7 {[%clk 0:01:09.1]} 48. Qa1 {[%clk 0:00:12.3]} 48... Rc5+ {[%clk
0:01:03.3]} 49. Kb6 {[%clk 0:00:12]} 49... Rb5+ {[%clk 0:01:00.2]} 50. Kc7
{[%clk 0:00:08]} 50... Rxb1 {[%clk 0:00:58.5]} 51. Qh8 {[%clk 0:00:08.4]} 51...
g1=Q {[%clk 0:00:55.5]} 52. Qxh7+ {[%clk 0:00:07.5]} 52... Qg7 {[%clk
0:00:55.2]} 53. Qh5+ {[%clk 0:00:07.5]} 0-1

[Event "Late-Titled-Tuesday-Blitz-February-27-2024"]
[Site "Chess.com"]
[Date "2024.02.27"]
[Round "1"]
[White "Alexei_Gubajdullin"]
[Black "SharathRk6"]
[Result "1/2-1/2"]
[WhiteElo "2638"]
[BlackElo "2361"]
[TimeControl "180+1"]
[EndTime "14:07:26 PST"]
[Termination "Game drawn - insufficient material"]

1. Nf3 {[%clk 0:02:59.5]} 1... Nf6 {[%clk 0:02:59.8]} 2. g3 {[%clk 0:02:59.1]}
2... g6 {[%clk 0:03:00]} 3. b4 {[%clk 0:02:54.7]} 3... Bg7 {[%clk 0:02:58.8]} 4.
Bb2 {[%clk 0:02:54.7]} 4... O-O {[%clk 0:02:58.6]} 5. Bg2 {[%clk 0:02:54.5]}
5... d5 {[%clk 0:02:51.4]} 6. O-O {[%clk 0:02:53.7]} 6... Bf5 {[%clk 0:02:47.4]}
7. d3 {[%clk 0:02:46.3]} 7... c6 {[%clk 0:02:45.5]} 8. Nbd2 {[%clk 0:02:45.4]}
8... Nbd7 {[%clk 0:02:45.2]} 9. c4 {[%clk 0:02:44.9]} 9... a5 {[%clk 0:02:43.7]}
10. b5 {[%clk 0:02:44.3]} 10... Rc8 {[%clk 0:02:43]} 11. bxc6 {[%clk 0:02:43.8]}
11... bxc6 {[%clk 0:02:42.7]} 12. Bc3 {[%clk 0:02:35.7]} 12... Re8 {[%clk
0:02:27.9]} 13. Qa4 {[%clk 0:02:33.6]} 13... e5 {[%clk 0:02:04.3]} 14. Bxa5
{[%clk 0:02:29.9]} 14... Qe7 {[%clk 0:02:03.4]} 15. cxd5 {[%clk 0:02:29.9]}
15... cxd5 {[%clk 0:02:03]} 16. Bb4 {[%clk 0:02:29.7]} 16... Qe6 {[%clk
0:01:58.9]} 17. e4 {[%clk 0:02:27.6]} 17... dxe4 {[%clk 0:01:58.6]} 18. dxe4
{[%clk 0:02:27.5]} 18... Nxe4 {[%clk 0:01:55.1]} 19. Nxe4 {[%clk 0:02:26.8]}
19... Bxe4 {[%clk 0:01:54.4]} 20. Ng5 {[%clk 0:02:26.8]} 20... Qc6 {[%clk
0:01:46.3]} 21. Qxc6 {[%clk 0:02:25.2]} 21... Bxc6 {[%clk 0:01:46.6]} 22. Rfd1
{[%clk 0:02:19]} 22... Bxg2 {[%clk 0:01:38]} 23. Kxg2 {[%clk 0:02:17.8]} 23...
Nb6 {[%clk 0:01:38.5]} 24. a3 {[%clk 0:02:16]} 24... h6 {[%clk 0:01:37.9]} 25.
Ne4 {[%clk 0:02:15.8]} 25... Red8 {[%clk 0:01:31.3]} 26. Nd6 {[%clk 0:02:07.5]}
26... Rc6 {[%clk 0:01:30.8]} 27. g4 {[%clk 0:02:04.2]} 27... Nc4 {[%clk
0:01:22]} 28. Nxc4 {[%clk 0:02:02.3]} 28... Rxd1 {[%clk 0:01:19.9]} 29. Rxd1
{[%clk 0:02:01.8]} 29... Rxc4 {[%clk 0:01:20.4]} 30. Rd8+ {[%clk 0:02:00.7]}
30... Kh7 {[%clk 0:01:20.4]} 31. h3 {[%clk 0:01:59.4]} 31... e4 {[%clk
0:01:17.8]} 32. Rd7 {[%clk 0:01:54.2]} 32... Kg8 {[%clk 0:01:16]} 33. Rd8+
{[%clk 0:01:50]} 33... Kh7 {[%clk 0:01:14.7]} 34. Rb8 {[%clk 0:01:46.2]} 34...
Rc2 {[%clk 0:01:13.1]} 35. Rb7 {[%clk 0:01:40.1]} 35... Kg8 {[%clk 0:01:11.5]}
36. Re7 {[%clk 0:01:37.5]} 36... f5 {[%clk 0:01:05.4]} 37. gxf5 {[%clk 0:01:32]}
37... gxf5 {[%clk 0:01:05.1]} 38. Re8+ {[%clk 0:01:28.1]} 38... Kf7 {[%clk
0:01:04.6]} 39. Rd8 {[%clk 0:01:27.5]} 39... e3 {[%clk 0:00:58.2]} 40. Rd7+
{[%clk 0:01:20.8]} 40... Kg8 {[%clk 0:00:55.4]} 41. Be1 {[%clk 0:01:14.6]} 41...
e2 {[%clk 0:00:40.1]} 42. Re7 {[%clk 0:00:48.7]} 42... Ra2 {[%clk 0:00:38.5]}
43. Bb4 {[%clk 0:00:42.7]} 43... Bd4 {[%clk 0:00:31.6]} 44. Kf3 {[%clk
0:00:36.7]} 44... e1=Q {[%clk 0:00:30.1]} 45. Bxe1 {[%clk 0:00:36.2]} 45...
Rxa3+ {[%clk 0:00:30]} 46. Kf4 {[%clk 0:00:35.7]} 46... Rxh3 {[%clk 0:00:30.2]}
47. Kxf5 {[%clk 0:00:35.7]} 47... Bxf2 {[%clk 0:00:28.5]} 48. Bxf2 {[%clk
0:00:17.5]} 48... Rf3+ {[%clk 0:00:28.1]} 49. Kg6 {[%clk 0:00:16.5]} 49... Rxf2
{[%clk 0:00:28.5]} 50. Re8+ {[%clk 0:00:16.4]} 50... Rf8 {[%clk 0:00:29]} 51.
Rxf8+ {[%clk 0:00:16.6]} 51... Kxf8 {[%clk 0:00:29]} 52. Kxh6 {[%clk 0:00:17.5]}
1/2-1/2

[Event "Late-Titled-Tuesday-Blitz-February-27-2024"]
[Site "Chess.com"]
[Date "2024.02.27"]
[Round "1"]
[White "vugarrasulov"]
[Black "VinzentSpitzl"]
[Result "1-0"]
[WhiteElo "2997"]
[BlackElo "2507"]
[TimeControl "180+1"]
[EndTime "14:07:29 PST"]
[Termination "vugarrasulov won on time"]

1. e4 {[%clk 0:03:00.9]} 1... c5 {[%clk 0:02:59.2]} 2. Nf3 {[%clk 0:03:00.6]}
2... d6 {[%clk 0:02:59.6]} 3. Bb5+ {[%clk 0:02:58.5]} 3... Bd7 {[%clk
0:02:59.2]} 4. a4 {[%clk 0:02:57.6]} 4... g6 {[%clk 0:02:57.5]} 5. O-O {[%clk
0:02:56.3]} 5... Bg7 {[%clk 0:02:57.5]} 6. Nc3 {[%clk 0:02:51.4]} 6... Nc6
{[%clk 0:02:57.3]} 7. d3 {[%clk 0:02:49.2]} 7... Nf6 {[%clk 0:02:55.9]} 8. h3
{[%clk 0:02:49.7]} 8... O-O {[%clk 0:02:54.9]} 9. Bg5 {[%clk 0:02:47.6]} 9... a6
{[%clk 0:02:53.1]} 10. Bc4 {[%clk 0:02:46.9]} 10... h6 {[%clk 0:02:45.5]} 11.
Be3 {[%clk 0:02:46.5]} 11... Rb8 {[%clk 0:02:37.2]} 12. Re1 {[%clk 0:02:40.6]}
12... Qc8 {[%clk 0:02:26.9]} 13. Nd5 {[%clk 0:02:30.5]} 13... Kh7 {[%clk
0:02:04.6]} 14. Nb6 {[%clk 0:02:28.9]} 14... Qc7 {[%clk 0:02:04.3]} 15. Nxd7
{[%clk 0:02:29.4]} 15... Qxd7 {[%clk 0:02:04.5]} 16. a5 {[%clk 0:02:23.7]} 16...
e6 {[%clk 0:01:56.4]} 17. Bb3 {[%clk 0:02:14.1]} 17... Qc7 {[%clk 0:01:55.7]}
18. Qd2 {[%clk 0:02:12.3]} 18... Nd7 {[%clk 0:01:55.7]} 19. h4 {[%clk
0:01:41.6]} 19... Nde5 {[%clk 0:01:45.8]} 20. Nxe5 {[%clk 0:01:40.7]} 20... Nxe5
{[%clk 0:01:45.4]} 21. f3 {[%clk 0:01:35.6]} 21... c4 {[%clk 0:01:23]} 22. Ba2
{[%clk 0:01:35.3]} 22... cxd3 {[%clk 0:01:08.6]} 23. cxd3 {[%clk 0:01:36.2]}
23... Rbc8 {[%clk 0:01:08.1]} 24. Rac1 {[%clk 0:01:30.4]} 24... Qd7 {[%clk
0:01:07.1]} 25. d4 {[%clk 0:01:28.4]} 25... Nc6 {[%clk 0:01:06.7]} 26. d5 {[%clk
0:01:28.9]} 26... Ne5 {[%clk 0:00:51.8]} 27. b4 {[%clk 0:01:24.4]} 27... Qe7
{[%clk 0:00:50.2]} 28. Bf2 {[%clk 0:01:21.8]} 28... Rfd8 {[%clk 0:00:36.5]} 29.
dxe6 {[%clk 0:01:18.7]} 29... fxe6 {[%clk 0:00:36.3]} 30. Red1 {[%clk
0:01:16.5]} 30... Rxc1 {[%clk 0:00:34]} 31. Rxc1 {[%clk 0:01:17.4]} 31... g5
{[%clk 0:00:26.8]} 32. hxg5 {[%clk 0:01:16.7]} 32... hxg5 {[%clk 0:00:27]} 33.
Bb6 {[%clk 0:01:10.6]} 33... Rh8 {[%clk 0:00:14.4]} 34. Rc7 {[%clk 0:01:07.3]}
34... Qf6 {[%clk 0:00:14.7]} 35. Rxb7 {[%clk 0:00:53.9]} 35... Kg6 {[%clk
0:00:13.4]} 36. Rc7 {[%clk 0:00:38.9]} 36... Nxf3+ {[%clk 0:00:10.5]} 37. gxf3
{[%clk 0:00:39.1]} 37... Qxf3 {[%clk 0:00:10.6]} 38. Rxg7+ {[%clk 0:00:33.8]}
38... Kxg7 {[%clk 0:00:09.2]} 39. Bd4+ {[%clk 0:00:34.2]} 39... e5 {[%clk
0:00:09.3]} 40. Qxg5+ {[%clk 0:00:34.5]} 40... Kh7 {[%clk 0:00:03.1]} 41. Qe7+
{[%clk 0:00:30.4]} 41... Kh6 {[%clk 0:00:02.5]} 42. Qxd6+ {[%clk 0:00:30.6]}
42... Kh5 {[%clk 0:00:01.6]} 43. Qxe5+ {[%clk 0:00:30.7]} 43... Kh4 {[%clk
0:00:01.9]} 44. Qf6+ {[%clk 0:00:30.1]} 44... Kg3 {[%clk 0:00:01]} 45. Qxf3+
{[%clk 0:00:30.1]} 45... Kxf3 {[%clk 0:00:01.2]} 46. Bxh8 {[%clk 0:00:30.6]} 1-0

[Event "Late-Titled-Tuesday-Blitz-February-27-2024"]
[Site "Chess.com"]
[Date "2024.02.27"]
[Round "1"]
[White "fandebobbyfischer"]
[Black "vladoboch"]
[Result "0-1"]
[WhiteElo "2714"]
[BlackElo "2437"]
[TimeControl "180+1"]
[EndTime "14:07:31 PST"]
[Termination "vladoboch won by resignation"]

1. e4 {[%clk 0:03:00.1]} 1... e5 {[%clk 0:02:55]} 2. Nf3 {[%clk 0:03:00.1]} 2...
Nc6 {[%clk 0:02:55]} 3. Bc4 {[%clk 0:02:59.6]} 3... Nf6 {[%clk 0:02:54]} 4. Ng5
{[%clk 0:02:59.8]} 4... d5 {[%clk 0:02:53.2]} 5. exd5 {[%clk 0:03:00.7]} 5...
Na5 {[%clk 0:02:53.3]} 6. Bb5+ {[%clk 0:03:01.3]} 6... c6 {[%clk 0:02:53.5]} 7.
dxc6 {[%clk 0:03:02.2]} 7... bxc6 {[%clk 0:02:53.5]} 8. Bd3 {[%clk 0:03:02.9]}
8... Nd5 {[%clk 0:02:52.8]} 9. Nf3 {[%clk 0:03:02]} 9... Bd6 {[%clk 0:02:37.7]}
10. O-O {[%clk 0:03:01.6]} 10... O-O {[%clk 0:02:37.1]} 11. Re1 {[%clk
0:03:01.7]} 11... Nf4 {[%clk 0:02:31.8]} 12. Bf1 {[%clk 0:02:57.4]} 12... Qf6
{[%clk 0:02:24.4]} 13. d3 {[%clk 0:02:56.2]} 13... Bg4 {[%clk 0:02:23.3]} 14.
Nbd2 {[%clk 0:02:19.6]} 14... Qg6 {[%clk 0:02:09.2]} 15. Kh1 {[%clk 0:01:55.3]}
15... f5 {[%clk 0:01:54.5]} 16. h3 {[%clk 0:01:24.4]} 16... Bh5 {[%clk
0:01:41.3]} 17. g3 {[%clk 0:01:17.3]} 17... e4 {[%clk 0:01:08.7]} 18. dxe4
{[%clk 0:01:15.6]} 18... fxe4 {[%clk 0:01:09.1]} 19. Rxe4 {[%clk 0:00:22.1]}
19... Nxh3 {[%clk 0:00:52.7]} 20. Bxh3 {[%clk 0:00:23]} 20... Bxf3+ {[%clk
0:00:53]} 21. Nxf3 {[%clk 0:00:23.4]} 21... Qxe4 {[%clk 0:00:53.5]} 22. Bg2
{[%clk 0:00:24.1]} 22... Rad8 {[%clk 0:00:43.4]} 23. Bg5 {[%clk 0:00:02.8]}
23... Be7 {[%clk 0:00:38.4]} 24. Qc1 {[%clk 0:00:03]} 24... Bxg5 {[%clk
0:00:28.6]} 25. Qxg5 {[%clk 0:00:03.9]} 25... Rd5 {[%clk 0:00:27.1]} 26. Qh4
{[%clk 0:00:02.3]} 26... Qxh4+ {[%clk 0:00:15]} 27. gxh4 {[%clk 0:00:03.2]}
27... Rdf5 {[%clk 0:00:13.5]} 28. Nd4 {[%clk 0:00:01.6]} 28... Rxf2 {[%clk
0:00:13.4]} 29. Ne6 {[%clk 0:00:01.9]} 29... Re8 {[%clk 0:00:09.6]} 30. Nd4
{[%clk 0:00:02.4]} 30... c5 {[%clk 0:00:09.3]} 31. Nb3 {[%clk 0:00:01.9]} 31...
Nxb3 {[%clk 0:00:09.4]} 32. Bd5+ {[%clk 0:00:02.3]} 32... Kf8 {[%clk 0:00:08.5]}
33. axb3 {[%clk 0:00:02.6]} 33... Ree2 {[%clk 0:00:06]} 34. Bc4 {[%clk
0:00:01.8]} 34... Rxc2 {[%clk 0:00:05.5]} 35. Kg1 {[%clk 0:00:02.6]} 35... Rg2+
{[%clk 0:00:05.9]} 36. Kf1 {[%clk 0:00:03]} 36... Rcf2+ {[%clk 0:00:06.2]} 37.
Ke1 {[%clk 0:00:02.9]} 37... Rg1+ {[%clk 0:00:06.9]} 38. Kxf2 {[%clk 0:00:03.6]}
38... Rxa1 {[%clk 0:00:07.8]} 39. Ke3 {[%clk 0:00:04.3]} 39... Rb1 {[%clk
0:00:08.2]} 0-1

[Event "Late-Titled-Tuesday-Blitz-February-27-2024"]
[Site "Chess.com"]
[Date "2024.02.27"]
[Round "1"]
[White "bipe137"]
[Black "1g60-1"]
[Result "1-0"]
[WhiteElo "2570"]
[BlackElo "2176"]
[TimeControl "180+1"]
[EndTime "14:07:31 PST"]
[Termination "bipe137 won on time"]

1. d4 {[%clk 0:02:52.5]} 1... e6 {[%clk 0:02:58.7]} 2. c4 {[%clk 0:02:52.6]}
2... f5 {[%clk 0:02:57.8]} 3. Nc3 {[%clk 0:02:52.9]} 3... Nf6 {[%clk 0:02:58]}
4. Qc2 {[%clk 0:02:52.7]} 4... d6 {[%clk 0:02:56.7]} 5. Nf3 {[%clk 0:02:43.5]}
5... Nc6 {[%clk 0:02:47.2]} 6. g3 {[%clk 0:02:39.9]} 6... Be7 {[%clk 0:02:44.6]}
7. Bg2 {[%clk 0:02:40]} 7... O-O {[%clk 0:02:44.5]} 8. O-O {[%clk 0:02:40.6]}
8... a5 {[%clk 0:02:43.4]} 9. b3 {[%clk 0:02:40]} 9... e5 {[%clk 0:02:39.1]} 10.
dxe5 {[%clk 0:02:39.3]} 10... dxe5 {[%clk 0:02:39]} 11. Bb2 {[%clk 0:02:33.9]}
11... Qe8 {[%clk 0:02:34.3]} 12. Nb5 {[%clk 0:02:31.7]} 12... Bd8 {[%clk
0:02:32.8]} 13. Rad1 {[%clk 0:02:28.7]} 13... Qh5 {[%clk 0:02:07.5]} 14. h3
{[%clk 0:02:20.2]} 14... f4 {[%clk 0:01:48.3]} 15. g4 {[%clk 0:02:17.1]} 15...
Bxg4 {[%clk 0:01:48.1]} 16. hxg4 {[%clk 0:02:11.4]} 16... Nxg4 {[%clk 0:01:49]}
17. Rd7 {[%clk 0:01:50.5]} 17... Re8 {[%clk 0:01:19.2]} 18. Rfd1 {[%clk
0:01:37.5]} 18... Bh4 {[%clk 0:01:11]} 19. Rf1 {[%clk 0:00:27]} 19... Bf6 {[%clk
0:00:30.3]} 20. Qe4 {[%clk 0:00:20.2]} 20... Rad8 {[%clk 0:00:18.9]} 21. Rfd1
{[%clk 0:00:20]} 21... Rxd7 {[%clk 0:00:16.6]} 22. Rxd7 {[%clk 0:00:20.4]} 22...
Bh4 {[%clk 0:00:16.5]} 23. Qd5+ {[%clk 0:00:09.7]} 23... Kh8 {[%clk 0:00:15.7]}
24. Qf7 {[%clk 0:00:10.1]} 24... Bxf2+ {[%clk 0:00:15]} 25. Kf1 {[%clk
0:00:10.7]} 25... Qxf7 {[%clk 0:00:11.3]} 26. Rxf7 {[%clk 0:00:11.6]} 26... Bg3
{[%clk 0:00:09.9]} 27. Bh3 {[%clk 0:00:08.3]} 27... Ne3+ {[%clk 0:00:07.8]} 28.
Kg1 {[%clk 0:00:08.8]} 28... Rd8 {[%clk 0:00:06.9]} 29. Rd7 {[%clk 0:00:06.6]}
29... Re8 {[%clk 0:00:03.7]} 30. Ng5 {[%clk 0:00:07]} 30... h6 {[%clk
0:00:03.4]} 31. Nxc7 {[%clk 0:00:07.2]} 31... Rc8 {[%clk 0:00:02.9]} 32. Nf7+
{[%clk 0:00:07.2]} 32... Kh7 {[%clk 0:00:02.8]} 33. Ne6 {[%clk 0:00:07.8]} 33...
Nd4 {[%clk 0:00:01.9]} 34. Nxd4 {[%clk 0:00:07.4]} 34... exd4 {[%clk 0:00:02.2]}
35. Bxd4 {[%clk 0:00:08]} 35... Re8 {[%clk 0:00:02.7]} 36. Ng5+ {[%clk 0:00:08]}
36... hxg5 {[%clk 0:00:02.6]} 37. Rxg7+ {[%clk 0:00:08.6]} 37... Kh6 {[%clk
0:00:03]} 38. Rxb7 {[%clk 0:00:08.4]} 38... Nc2 {[%clk 0:00:02.1]} 39. Rb6+
{[%clk 0:00:08.6]} 39... Kh5 {[%clk 0:00:02.2]} 40. Bg2 {[%clk 0:00:08.4]} 1-0